[Event "FIDE Womens Grand Swiss 2021"]
[Site "Riga"]
[Date "2021.10.28"]
[Round "2.18"]
[White "Houska, Jovanka"]
[Black "Kashlinskaya, Alina"]
[Result "0-1"]
[ECO "D37"]
[WhiteElo "2381"]
[BlackElo "2493"]
[Annotator "ChessBase"]
[PlyCount "98"]
[EventDate "2021.10.27"]
[EventType "swiss"]
[EventCountry "LAT"]
[Tiebreak "Cut1 Buchholz+Sonneborn-Berger (Swiss)"]
[SourceTitle "playchess.com"]
[Source "ChessBase"]
[SourceQuality "1"]
[TimeControl "40/6000+30:20/3000+30:900+30"]

1. Nf3 {[%emt 0:10:05]} d5 {[%emt 0:10:16]} 2. d4 {[%emt 0:00:05]} Nf6 {
[%emt 0:00:12]} 3. c4 {[%emt 0:00:05]} e6 {[%emt 0:00:12]} 4. Nc3 {[%emt 0:00:
05]} dxc4 {[%emt 0:00:12]} 5. e4 {[%emt 0:00:31]} b5 {[%emt 0:00:25]} 6. e5 {
[%emt 0:00:20]} Nd5 {[%emt 0:00:09]} 7. Nxb5 {[%emt 0:00:15]} Nb6 {[%emt 0:00:
10]} 8. Be2 {[%emt 0:00:29]} Nc6 {[%emt 0:00:26]} 9. O-O {[%emt 0:00:53]} Be7 {
[%emt 0:00:17]} 10. Be3 {[%emt 0:01:06]} O-O {[%emt 0:00:54]} 11. Qc1 {[%emt 0:
00:12]} a6 {[%emt 0:10:31]} 12. Nc3 {[%emt 0:03:37]} Bb7 {[%emt 0:00:38]} 13.
Rd1 {[%emt 0:02:03]} Nb4 {[%emt 0:02:35]} 14. Nd2 {[%emt 0:05:00]} Qe8 {
[%emt 0:04:26]} 15. Nxc4 {[%emt 0:23:41]} Rd8 {[%emt 0:09:16]} 16. a3 {[%emt 0:
14:27]} N4d5 {[%emt 0:03:03]} 17. Nxb6 {[%emt 0:03:41]} cxb6 {[%emt 0:01:47]}
18. Nxd5 {[%emt 0:07:29]} Bxd5 {[%emt 0:02:26]} 19. a4 {[%emt 0:06:13]} f5 {
[%emt 0:07:58]} 20. f3 {[%emt 0:08:10]} Rc8 {[%emt 0:11:38]} 21. Qd2 {[%emt 0:
00:24]} a5 {[%emt 0:00:28]} 22. Rdc1 {[%emt 0:00:37]} Qg6 {[%emt 0:07:37]} 23.
Rxc8 {[%emt 0:01:39]} Rxc8 {[%emt 0:00:05]} 24. Rc1 {[%emt 0:00:06]} Rxc1+ {
[%emt 0:02:10]} 25. Qxc1 {[%emt 0:00:04]} h6 {[%emt 0:00:39]} 26. Bd2 {[%emt 0:
02:26]} Qe8 {[%emt 0:06:09]} 27. Bb5 {[%emt 0:01:58]} Qd8 {[%emt 0:01:06]} 28.
Bc4 {[%emt 0:02:16]} Kh7 {[%emt 0:05:45]} 29. b3 {[%emt 0:00:50]} Bc6 {[%emt 0:
02:17]} 30. Be3 {[%emt 0:08:30]} Qd7 {[%emt 0:00:16]} 31. Kf1 {[%emt 0:02:18]}
Bb4 {[%emt 0:01:59]} 32. Qc2 {[%emt 0:00:30]} b5 {[%emt 0:02:59]} 33. axb5 {
[%emt 0:00:23]} Bxb5 {[%emt 0:00:04]} 34. Qd3 {[%emt 0:01:44]} Bc6 {[%emt 0:00:
32]} 35. Bd2 {[%emt 0:01:39]} Bxd2 {[%emt 0:04:35]} 36. Qxd2 {[%emt 0:00:03]}
a4 {[%emt 0:00:32]} 37. bxa4 {[%emt 0:00:15]} Bxa4 {[%emt 0:00:03]} 38. Qb4 {
[%emt 0:02:17]} Bc2 {[%emt 0:06:06]} 39. Qd6 {[%emt 0:02:51]} Qa4 {[%emt 0:00:
13]} 40. Bxe6 {[%emt 0:00:08]} Bd3+ {[%emt 0:00:29]} 41. Kf2 {[%emt 0:50:09]}
f4 {[%emt 0:54:53]} 42. h3 {[%emt 0:00:00]} Qd1 {[%emt 0:00:00]} 43. Bf5+ {
[%emt 0:00:00]} Bxf5 {[%emt 0:00:00]} 44. e6 {[%emt 0:00:00]} Qc1 {[%emt 0:00:
00]} 45. Qe5 {[%emt 0:00:00]} Bd3 {[%emt 0:00:00]} 46. Qe1 {[%emt 0:00:00]}
Qxe1+ {[%emt 0:00:00]} 47. Kxe1 {[%emt 0:00:00]} Kg6 {[%emt 0:00:00]} 48. Kf2 {
[%emt 0:00:00]} Kf6 {[%emt 0:00:00]} 49. g3 {[%emt 0:00:00]} g5 {[%emt 0:00:00]
} 0-1

[Event "FIDE Womens Grand Swiss 2021"]
[Site "Riga"]
[Date "2021.10.28"]
[Round "2.19"]
[White "Hoang, Thanh Trang"]
[Black "Danielian, Elina"]
[Result "0-1"]
[ECO "A41"]
[WhiteElo "2380"]
[BlackElo "2450"]
[Annotator "ChessBase"]
[PlyCount "114"]
[EventDate "2021.10.27"]
[EventType "swiss"]
[EventCountry "LAT"]
[Tiebreak "Cut1 Buchholz+Sonneborn-Berger (Swiss)"]
[SourceTitle "playchess.com"]
[Source "ChessBase"]
[SourceQuality "1"]
[TimeControl "40/6000+30:20/3000+30:900+30"]

1. d4 {[%emt 0:10:08]} d6 {[%emt 0:10:06]} 2. e4 {[%emt 0:00:58]} g6 {[%emt 0:
00:26]} 3. Nc3 {[%emt 0:00:37]} a6 {[%emt 0:02:15]} 4. Be3 {[%emt 0:01:58]} Bg7
{[%emt 0:00:17]} 5. Nf3 {[%emt 0:02:03]} b5 {[%emt 0:01:07]} 6. Bd3 {[%emt 0:
03:23]} Bb7 {[%emt 0:02:26]} 7. a4 {[%emt 0:06:01]} b4 {[%emt 0:00:13]} 8. Ne2
{[%emt 0:00:28]} Nf6 {[%emt 0:02:27]} 9. Ng3 {[%emt 0:01:09]} Nbd7 {[%emt 0:21:
40]} 10. h3 {[%emt 0:04:03]} h5 {[%emt 0:07:34]} 11. Bg5 {[%emt 0:09:12]} c5 {
[%emt 0:12:26]} 12. c3 {[%emt 0:03:08]} bxc3 {[%emt 0:21:31]} 13. bxc3 {
[%emt 0:00:24]} Qa5 {[%emt 0:00:05]} 14. Qd2 {[%emt 0:02:19]} d5 {[%emt 0:02:
34]} 15. e5 {[%emt 0:14:59]} Ne4 {[%emt 0:00:08]} 16. Bxe4 {[%emt 0:02:24]}
dxe4 {[%emt 0:00:05]} 17. Nh4 {[%emt 0:01:28]} cxd4 {[%emt 0:09:13]} 18. cxd4 {
[%emt 0:00:47]} Qxd2+ {[%emt 0:00:04]} 19. Bxd2 {[%emt 0:02:12]} O-O {[%emt 0:
04:12]} 20. O-O {[%emt 0:02:04]} Rfd8 {[%emt 0:05:16]} 21. Bb4 {[%emt 0:05:31]}
Nf8 {[%emt 0:01:58]} 22. Bc5 {[%emt 0:09:44]} Ne6 {[%emt 0:01:29]} 23. Bb6 Rd7
{[%emt 0:00:57]} 24. Ne2 {[%emt 0:06:47]} Bh6 {[%emt 0:01:56]} 25. g3 {[%emt 0:
01:12]} Rc8 {[%emt 0:00:40]} 26. Ra2 {[%emt 0:01:48]} Rc4 {[%emt 0:01:16]} 27.
a5 {[%emt 0:01:16]} Bc6 {[%emt 0:00:31]} 28. Ng2 {[%emt 0:02:46]} Ng5 {[%emt 0:
00:16]} 29. h4 {[%emt 0:02:21]} Nf3+ {[%emt 0:00:12]} 30. Kh1 {[%emt 0:00:07]}
Rb4 {[%emt 0:00:50]} 31. Ne3 {[%emt 0:03:36]} Bb5 {[%emt 0:00:35]} 32. Rc1 {
[%emt 0:02:16]} Kg7 {[%emt 0:00:32]} 33. Kg2 {[%emt 0:06:55]} Rb3 {[%emt 0:00:
05]} 34. Rc3 {[%emt 0:01:09]} Rb1 {[%emt 0:00:34]} 35. Rc1 {[%emt 0:01:35]}
Rxc1 {[%emt 0:00:31]} 36. Nxc1 {[%emt 0:00:05]} Nxd4 {[%emt 0:00:19]} 37. Rd2 {
[%emt 0:00:52]} Nf3 {[%emt 0:00:11]} 38. Rxd7 {[%emt 0:00:41]} Bxd7 {[%emt 0:
00:05]} 39. Bc7 {[%emt 0:00:49]} Kf8 {[%emt 0:01:00]} 40. Nb3 {[%emt 0:00:27]}
Ne1+ {[%emt 0:00:18]} 41. Kf1 {[%emt 0:21:55]} Nd3 {[%emt 0:20:04]} 42. Ke2 {
[%emt 0:03:14]} Nb4 {[%emt 0:26:29]} 43. Nd4 {[%emt 0:07:50]} Ke8 {[%emt 0:01:
05]} 44. Nc4 {[%emt 0:03:53]} Nc6 {[%emt 0:03:12]} 45. Nb3 {[%emt 0:01:44]}
Bg4+ {[%emt 0:00:50]} 46. Ke1 {[%emt 0:00:18]} Be6 {[%emt 0:01:49]} 47. Ncd2 {
[%emt 0:00:45]} e3 {[%emt 0:00:58]} 48. fxe3 {[%emt 0:00:42]} Bxe3 {[%emt 0:00:
04]} 49. Ke2 {[%emt 0:00:50]} Bxd2 {[%emt 0:00:45]} 50. Nxd2 {[%emt 0:00:08]}
Kd7 {[%emt 0:00:01]} 51. Bb6 {[%emt 0:00:15]} Nxe5 {[%emt 0:00:04]} 52. Ne4 {
[%emt 0:00:27]} Kc6 {[%emt 0:00:34]} 53. Bd8 {[%emt 0:01:32]} Bg4+ {[%emt 0:01:
20]} 54. Kf2 {[%emt 0:01:16]} Kd5 {[%emt 0:00:27]} 55. Ng5 {[%emt 0:01:46]} f6
{[%emt 0:00:24]} 56. Nh7 {[%emt 0:00:36]} Ke6 {[%emt 0:01:02]} 57. Bc7 {
[%emt 0:00:43]} Nc6 {[%emt 0:00:13]} 0-1

[Event "FIDE Womens Grand Swiss 2021"]
[Site "Riga"]
[Date "2021.10.28"]
[Round "2.20"]
[White "Cramling, Pia"]
[Black "Padmini, Rout"]
[Result "0-1"]
[ECO "E10"]
[WhiteElo "2447"]
[BlackElo "2380"]
[Annotator "NA"]
[PlyCount "80"]
[EventDate "2021.10.27"]
[EventType "swiss"]
[EventCountry "LAT"]
[Tiebreak "Cut1 Buchholz+Sonneborn-Berger (Swiss)"]
[SourceTitle "playchess.com"]
[Source "ChessBase"]
[SourceQuality "1"]
[TimeControl "40/6000+30:20/3000+30:900+30"]

1. d4 {[%emt 0:10:08]} Nf6 {[%emt 0:10:11]} 2. c4 {[%emt 0:00:11]} e6 {[%emt 0:
01:00]} 3. Nf3 {[%emt 0:00:41]} c5 {[%emt 0:00:18]} 4. e3 {[%emt 0:02:21]} cxd4
{[%emt 0:04:12]} 5. exd4 {[%emt 0:00:19]} d5 {[%emt 0:00:23]} 6. Nc3 {[%emt 0:
00:38]} Bb4 {[%emt 0:00:37]} 7. cxd5 {[%emt 0:06:28]} Nxd5 {[%emt 0:00:08]} 8.
Bd2 {[%emt 0:00:34]} Nc6 {[%emt 0:01:50]} 9. Bd3 {[%emt 0:01:11]} Be7 {[%emt 0:
02:44]} 10. a3 {[%emt 0:05:39]} Bf6 {[%emt 0:03:08]} 11. O-O {[%emt 0:09:57]}
O-O {[%emt 0:04:11]} 12. Be3 {[%emt 0:03:09]} Nce7 {[%emt 0:04:00]} 13. Ne4 {
[%emt 0:09:17]} Nf5 {[%emt 0:12:47]} 14. Nxf6+ {[%emt 0:10:51]} Qxf6 {[%emt 0:
03:16]} 15. Qe2 {[%emt 0:02:08]} b6 {[%emt 0:07:28]} 16. Ne5 {[%emt 0:03:06]}
Bb7 {[%emt 0:14:21]} 17. Rad1 $15 {[%emt 0:04:01]} Rad8 {[%emt 0:01:50]} 18.
Bb1 {[%emt 0:06:27]} Qh4 {[%emt 0:03:31]} 19. Qd2 {[%emt 0:13:26]} h6 {[%emt 0:
06:20]} 20. Bxf5 {[%emt 0:04:13]} exf5 {[%emt 0:00:05]} 21. f3 {[%emt 0:00:21]}
Rfe8 {[%emt 0:02:54]} 22. Rfe1 {[%emt 0:01:09]} f4 {[%emt 0:03:48]} 23. Bf2 {
[%emt 0:00:10]} Qg5 {[%emt 0:00:09]} 24. Rc1 {[%emt 0:02:19]} Re6 {[%emt 0:02:
03]} 25. b4 {[%emt 0:04:51]} f6 {[%emt 0:02:30]} 26. Nc4 {[%emt 0:00:52]} Rc6 {
[%emt 0:05:52]} 27. b5 {[%emt 0:00:38]} Rc7 {[%emt 0:00:13]} 28. a4 {[%emt 0:
00:54]} Qg6 {[%emt 0:02:15]} 29. a5 {[%emt 0:02:46]} Rdc8 {[%emt 0:02:09]} 30.
Nd6 {[%emt 0:01:28]} Rc2 {[%emt 0:00:16]} 31. Rxc2 {[%emt 0:01:44]} Rxc2 {
[%emt 0:00:02]} 32. Re8+ {[%emt 0:00:34]} Kh7 {[%emt 0:03:52]} 33. Nf7 {
[%emt 0:00:32]} Qxg2+ {[%emt 0:03:09]} 34. Kxg2 {[%emt 0:00:01]} Rxd2 {[%emt 0:
00:05]} 35. Kf1 {[%emt 0:03:12]} Rd1+ {[%emt 0:02:41]} 36. Re1 {[%emt 0:00:36]}
Rxe1+ {[%emt 0:00:44]} 37. Bxe1 {[%emt 0:00:58]} Nc7 {[%emt 0:00:39]} 38. axb6
{[%emt 0:00:39]} axb6 {[%emt 0:00:02]} 39. Ke2 {[%emt 0:00:48]} Nxb5 {[%emt 0:
00:09]} 40. Bf2 {[%emt 0:00:03]} Bd5 {[%emt 0:00:15]} 0-1

[Event "FIDE Womens Grand Swiss 2021"]
[Site "Riga"]
[Date "2021.10.28"]
[Round "2.21"]
[White "Girya, Olga"]
[Black "Rogule, Laura"]
[Result "1-0"]
[ECO "D30"]
[WhiteElo "2410"]
[BlackElo "2289"]
[Annotator "NA"]
[PlyCount "111"]
[EventDate "2021.10.27"]
[EventType "swiss"]
[EventCountry "LAT"]
[Tiebreak "Cut1 Buchholz+Sonneborn-Berger (Swiss)"]
[SourceTitle "playchess.com"]
[Source "ChessBase"]
[SourceQuality "1"]
[TimeControl "40/6000+30:20/3000+30:900+30"]

1. d4 {[%emt 0:10:02]} d5 {[%emt 0:10:08]} 2. c4 {[%emt 0:00:07]} e6 {[%emt 0:
00:06]} 3. Nf3 {[%emt 0:00:09]} Nf6 {[%emt 0:00:27]} 4. g3 {[%emt 0:00:09]}
Bb4+ {[%emt 0:01:07]} 5. Bd2 {[%emt 0:00:07]} Be7 {[%emt 0:00:24]} 6. Bg2 {
[%emt 0:00:34]} O-O {[%emt 0:00:51]} 7. O-O {[%emt 0:00:15]} c6 {[%emt 0:04:08]
} 8. Qc2 {[%emt 0:00:49]} Nbd7 {[%emt 0:02:22]} 9. Bf4 {[%emt 0:05:44]} b6 {
[%emt 0:04:52]} 10. Nbd2 {[%emt 0:03:30]} Bb7 {[%emt 0:09:42]} 11. e4 {[%emt 0:
00:54]} dxe4 {[%emt 0:05:25]} 12. Nxe4 {[%emt 0:01:49]} Nxe4 {[%emt 0:03:04]}
13. Qxe4 {[%emt 0:00:07]} Nf6 {[%emt 0:00:35]} 14. Qe2 {[%emt 0:01:59]} c5 {
[%emt 0:00:41]} 15. Rfd1 {[%emt 0:02:38]} cxd4 {[%emt 0:00:49]} 16. Rxd4 {
[%emt 0:08:32]} Qe8 {[%emt 0:06:07]} 17. Ne5 {[%emt 0:02:50]} Bxg2 {[%emt 0:03:
03]} 18. Kxg2 {[%emt 0:00:59]} Rd8 {[%emt 0:13:18]} 19. Rxd8 {[%emt 0:01:28]}
Qxd8 {[%emt 0:00:25]} 20. Qf3 {[%emt 0:06:25]} Qc8 {[%emt 0:07:38]} 21. Rd1 {
[%emt 0:06:31]} Re8 {[%emt 0:03:00]} 22. g4 {[%emt 0:13:54]} Qa8 {[%emt 0:13:
12]} 23. Qxa8 {[%emt 0:03:10]} Rxa8 {[%emt 0:00:01]} 24. Kf3 {[%emt 0:15:18]}
h6 {[%emt 0:04:26]} 25. Nc6 {[%emt 0:00:28]} Kf8 {[%emt 0:00:43]} 26. b4 {
[%emt 0:11:21]} a6 {[%emt 0:05:42]} 27. a4 {[%emt 0:04:44]} Rc8 {[%emt 0:01:29]
} 28. b5 {[%emt 0:00:31]} axb5 {[%emt 0:00:14]} 29. axb5 {[%emt 0:00:06]} Bc5 {
[%emt 0:08:21]} 30. h4 {[%emt 0:00:52]} Ke8 {[%emt 0:01:13]} 31. Be5 {[%emt 0:
02:55]} Ra8 {[%emt 0:01:32]} 32. g5 {[%emt 0:03:29]} hxg5 {[%emt 0:00:07]} 33.
hxg5 {[%emt 0:00:03]} Nd7 {[%emt 0:01:08]} 34. Bxg7 {[%emt 0:00:49]} Ra4 {
[%emt 0:00:29]} 35. Ra1 {[%emt 0:02:41]} Rxa1 {[%emt 0:00:32]} 36. Bxa1 {
[%emt 0:00:01]} Be7 {[%emt 0:00:30]} 37. Kg4 {[%emt 0:01:25]} Nc5 {[%emt 0:00:
25]} 38. Bd4 {[%emt 0:00:39]} Nd7 {[%emt 0:00:16]} 39. f4 {[%emt 0:00:29]} Bd6
{[%emt 0:00:29]} 40. Kf3 {[%emt 0:00:41]} Bc7 {[%emt 0:00:28]} 41. Ne5 {
[%emt 0:33:58]} Bxe5 {[%emt 0:41:30]} 42. Bxe5 {[%emt 0:00:06]} Ke7 {[%emt 0:
00:28]} 43. Kg4 {[%emt 0:01:53]} Nc5 {[%emt 0:01:08]} 44. Bd4 {[%emt 0:03:14]}
Nd7 {[%emt 0:00:41]} 45. Kh5 {[%emt 0:00:59]} Kf8 {[%emt 0:01:55]} 46. Kh6 {
[%emt 0:01:33]} Ke8 {[%emt 0:03:43]} 47. Kg7 {[%emt 0:00:29]} Ke7 {[%emt 0:00:
07]} 48. Bf6+ {[%emt 0:05:55]} Ke8 {[%emt 0:00:04]} 49. Be5 {[%emt 0:01:10]}
Nc5 {[%emt 0:02:23]} 50. Bc7 {[%emt 0:00:04]} Na4 {[%emt 0:01:28]} 51. Kf6 {
[%emt 0:01:39]} Nb2 {[%emt 0:01:52]} 52. c5 {[%emt 0:01:57]} bxc5 {[%emt 0:00:
05]} 53. b6 {[%emt 0:00:14]} Kd7 {[%emt 0:00:20]} 54. Be5 {[%emt 0:00:09]} Nc4
{[%emt 0:01:31]} 55. b7 {[%emt 0:00:11]} Nxe5 {[%emt 0:00:08]} 56. b8=Q {
[%emt 0:00:08]} 1-0

[Event "FIDE Womens Grand Swiss 2021"]
[Site "Riga"]
[Date "2021.10.28"]
[Round "2.22"]
[White "Lujan, Carolina"]
[Black "Milliet, Sophie"]
[Result "1-0"]
[ECO "C50"]
[WhiteElo "2340"]
[BlackElo "2410"]
[Annotator "NA"]
[PlyCount "137"]
[EventDate "2021.10.27"]
[EventType "swiss"]
[EventCountry "LAT"]
[Tiebreak "Cut1 Buchholz+Sonneborn-Berger (Swiss)"]
[SourceTitle "playchess.com"]
[Source "ChessBase"]
[SourceQuality "1"]
[TimeControl "40/6000+30:20/3000+30:900+30"]

1. e4 {[%emt 0:10:04]} e5 {[%emt 0:10:06]} 2. Nf3 {[%emt 0:00:07]} Nc6 {
[%emt 0:00:03]} 3. Bc4 {[%emt 0:00:08]} Nf6 {[%emt 0:00:04]} 4. d3 {[%emt 0:00:
07]} Bc5 $11 {[%emt 0:00:09]} 5. O-O {[%emt 0:00:30]} d6 {[%emt 0:01:20]} 6. c3
{[%emt 0:00:11]} a6 {[%emt 0:00:18]} 7. Bb3 {[%emt 0:00:21]} Ba7 {[%emt 0:00:
49]} 8. Nbd2 {[%emt 0:03:21]} h6 {[%emt 0:00:55]} 9. Re1 {[%emt 0:03:29]} g5 {
[%emt 0:00:20]} 10. Nf1 {[%emt 0:02:19]} Nh5 {[%emt 0:01:04]} 11. Be3 {[%emt 0:
07:43]} Nf4 {[%emt 0:06:06]} 12. d4 {[%emt 0:26:06]} Qf6 {[%emt 0:28:05]} 13.
dxe5 {[%emt 0:21:48]} dxe5 {[%emt 0:00:04]} 14. Bxa7 {[%emt 0:01:30]} Rxa7 {
[%emt 0:04:34]} 15. Ne3 {[%emt 0:00:49]} g4 {[%emt 0:11:37]} 16. Nd5 {[%emt 0:
02:50]} Nxd5 {[%emt 0:01:29]} 17. exd5 {[%emt 0:00:24]} gxf3 {[%emt 0:00:13]}
18. dxc6 {[%emt 0:00:27]} Rg8 {[%emt 0:04:03]} 19. g3 {[%emt 0:00:47]} Kf8 {
[%emt 0:03:01]} 20. Bd5 {[%emt 0:01:52]} bxc6 {[%emt 0:00:33]} 21. Qxf3 {
[%emt 0:02:13]} Rg6 {[%emt 0:01:30]} 22. Qxf6 {[%emt 0:02:54]} Rxf6 {[%emt 0:
00:04]} 23. Bg2 {[%emt 0:00:06]} Rb7 {[%emt 0:02:10]} 24. b3 {[%emt 0:00:13]}
Rb5 {[%emt 0:06:10]} 25. c4 {[%emt 0:00:34]} Ra5 {[%emt 0:04:55]} 26. a4 {
[%emt 0:00:37]} Rc5 {[%emt 0:00:46]} 27. a5 {[%emt 0:00:25]} Re6 {[%emt 0:06:
51]} 28. f3 {[%emt 0:11:42]} Re8 {[%emt 0:10:05]} 29. Bf1 {[%emt 0:01:10]} e4 {
[%emt 0:04:46]} 30. Rxe4 {[%emt 0:08:03]} Rxe4 {[%emt 0:00:04]} 31. fxe4 {
[%emt 0:00:03]} Re5 {[%emt 0:00:05]} 32. Bd3 {[%emt 0:00:23]} c5 {[%emt 0:00:
09]} 33. Kf2 {[%emt 0:00:41]} Bb7 {[%emt 0:00:40]} 34. Ke3 {[%emt 0:01:33]} Ke7
{[%emt 0:02:41]} 35. Kf4 {[%emt 0:01:05]} f6 {[%emt 0:00:20]} 36. g4 {[%emt 0:
00:53]} Re6 {[%emt 0:01:18]} 37. Rg1 {[%emt 0:00:47]} Rd6 {[%emt 0:00:15]} 38.
Ke3 {[%emt 0:00:11]} Rd8 {[%emt 0:00:23]} 39. Rf1 {[%emt 0:00:21]} Bc8 {
[%emt 0:00:09]} 40. Be2 {[%emt 0:00:44]} Be6 {[%emt 0:00:21]} 41. Rg1 {[%emt 0:
27:45]} Rb8 {[%emt 0:23:26]} 42. Bd1 {[%emt 0:01:16]} Rd8 {[%emt 0:08:03]} 43.
Bc2 {[%emt 0:01:02]} Rg8 {[%emt 0:00:14]} 44. Kf4 {[%emt 0:01:36]} Rd8 {
[%emt 0:00:32]} 45. Rg2 {[%emt 0:00:41]} Rg8 {[%emt 0:07:47]} 46. h4 {[%emt 0:
01:24]} Kd6 {[%emt 0:05:29]} 47. Bd1 {[%emt 0:02:55]} Rf8 {[%emt 0:00:40]} 48.
Rd2+ {[%emt 0:01:33]} Ke7 {[%emt 0:00:05]} 49. Rd3 {[%emt 0:00:52]} Rg8 {
[%emt 0:01:05]} 50. e5 {[%emt 0:03:07]} fxe5+ {[%emt 0:08:30]} 51. Kxe5 {
[%emt 0:00:11]} Bxg4 {[%emt 0:00:07]} 52. Rg3 {[%emt 0:02:47]} Be6 {[%emt 0:00:
26]} 53. Rxg8 {[%emt 0:00:26]} Bxg8 {[%emt 0:00:03]} 54. Bg4 {[%emt 0:01:34]}
Bh7 {[%emt 0:01:41]} 55. Bf5 {[%emt 0:07:01]} Bg8 {[%emt 0:00:04]} 56. Bc8 {
[%emt 0:02:24]} c6 {[%emt 0:00:15]} 57. Bxa6 {[%emt 0:00:55]} Kd7 {[%emt 0:00:
04]} 58. Kf6 {[%emt 0:01:06]} Bh7 {[%emt 0:00:03]} 59. Kg7 {[%emt 0:00:01]} Bc2
{[%emt 0:02:19]} 60. Kxh6 {[%emt 0:00:09]} Bxb3 {[%emt 0:00:20]} 61. h5 {
[%emt 0:15:25]} Bd1 {[%emt 0:15:15]} 62. Kg6 {[%emt 0:00:23]} Kc7 {[%emt 0:00:
38]} 63. h6 {[%emt 0:00:17]} Kb8 {[%emt 0:00:11]} 64. h7 {[%emt 0:00:27]} Bc2+
{[%emt 0:00:04]} 65. Kg7 {[%emt 0:00:04]} Bxh7 {[%emt 0:00:04]} 66. Kxh7 {
[%emt 0:00:02]} Ka7 {[%emt 0:00:10]} 67. Bc8 {[%emt 0:00:05]} Kb8 {[%emt 0:00:
04]} 68. Bd7 {[%emt 0:00:16]} Kb7 {[%emt 0:00:10]} 69. Kg6 {[%emt 0:00:20]} 1-0

[Event "FIDE Womens Grand Swiss 2021"]
[Site "Riga"]
[Date "2021.10.28"]
[Round "2.23"]
[White "Eizaguerri Floris, Maria"]
[Black "Cyfka, Karina"]
[Result "0-1"]
[ECO "C89"]
[WhiteElo "2328"]
[BlackElo "2409"]
[Annotator "NA"]
[PlyCount "128"]
[EventDate "2021.10.27"]
[EventType "swiss"]
[EventCountry "LAT"]
[Tiebreak "Cut1 Buchholz+Sonneborn-Berger (Swiss)"]
[SourceTitle "playchess.com"]
[Source "ChessBase"]
[SourceQuality "1"]
[TimeControl "40/6000+30:20/3000+30:900+30"]

1. e4 {[%emt 0:10:02]} e5 {[%emt 0:10:05]} 2. Nf3 {[%emt 0:00:04]} Nc6 {
[%emt 0:00:14]} 3. Bb5 {[%emt 0:00:09]} a6 {[%emt 0:00:30]} 4. Ba4 {[%emt 0:00:
05]} Nf6 {[%emt 0:00:06]} 5. O-O {[%emt 0:00:22]} Be7 {[%emt 0:00:34]} 6. Re1 {
[%emt 0:00:53]} b5 {[%emt 0:00:10]} 7. Bb3 {[%emt 0:00:04]} O-O {[%emt 0:00:05]
} 8. c3 {[%emt 0:00:08]} d5 {[%emt 0:00:35]} 9. exd5 {[%emt 0:00:56]} Nxd5 {
[%emt 0:00:08]} 10. Nxe5 {[%emt 0:00:10]} Nxe5 {[%emt 0:00:06]} 11. Rxe5 {
[%emt 0:00:04]} c6 {[%emt 0:00:04]} 12. d3 {[%emt 0:01:58]} Bd6 {[%emt 0:00:51]
} 13. Re1 {[%emt 0:00:19]} Bf5 {[%emt 0:01:31]} 14. Qf3 {[%emt 0:00:14]} Qh4 {
[%emt 0:03:18]} 15. g3 {[%emt 0:00:14]} Qh3 {[%emt 0:06:39]} 16. Be3 {[%emt 0:
01:09]} Bg4 {[%emt 0:17:42]} 17. Qg2 {[%emt 0:02:41]} Qh5 {[%emt 0:00:04]} 18.
Nd2 {[%emt 0:08:36]} Rae8 {[%emt 0:01:30]} 19. Bxd5 {[%emt 0:08:45]} cxd5 {
[%emt 0:01:16]} 20. f3 {[%emt 0:13:09]} Bh3 {[%emt 0:09:20]} 21. Qf2 {[%emt 0:
01:35]} Qg6 {[%emt 0:01:22]} 22. Rad1 {[%emt 0:03:59]} h5 {[%emt 0:06:39]} 23.
Nb3 {[%emt 0:11:47]} h4 {[%emt 0:05:17]} 24. f4 {[%emt 0:00:31]} Bf5 {[%emt 0:
08:53]} 25. Nc1 {[%emt 0:11:47]} hxg3 {[%emt 0:06:52]} 26. hxg3 {[%emt 0:04:14]
} Bg4 {[%emt 0:00:17]} 27. Rd2 {[%emt 0:00:48]} Qh5 {[%emt 0:04:19]} 28. Qh2 {
[%emt 0:03:29]} Qf5 {[%emt 0:00:17]} 29. Nb3 {[%emt 0:03:25]} Qg6 {[%emt 0:02:
53]} 30. Nd4 {[%emt 0:07:23]} Re7 {[%emt 0:03:28]} 31. Bf2 {[%emt 0:04:05]}
Rxe1+ {[%emt 0:01:45]} 32. Bxe1 {[%emt 0:00:01]} Re8 {[%emt 0:00:25]} 33. Bf2 {
[%emt 0:00:24]} b4 {[%emt 0:03:25]} 34. Qg2 {[%emt 0:04:32]} bxc3 {[%emt 0:00:
29]} 35. bxc3 {[%emt 0:00:05]} Rb8 {[%emt 0:00:54]} 36. Nb3 {[%emt 0:00:13]} a5
{[%emt 0:02:46]} 37. Ba7 {[%emt 0:08:38]} Rb7 {[%emt 0:02:38]} 38. Bd4 {
[%emt 0:00:34]} Qe6 {[%emt 0:02:04]} 39. Qf1 {[%emt 0:00:30]} Rb5 {[%emt 0:04:
56]} 40. Rc2 {[%emt 0:01:16]} a4 {[%emt 0:01:22]} 41. Na1 {[%emt 0:30:02]} Bh3
{[%emt 0:26:05]} 42. Qd1 {[%emt 0:04:10]} Qg6 {[%emt 0:01:21]} 43. Kf2 {
[%emt 0:02:19]} Bg4 {[%emt 0:04:43]} 44. Qf1 {[%emt 0:00:09]} Qf5 {[%emt 0:03:
24]} 45. Kg1 {[%emt 0:06:38]} Qc8 {[%emt 0:01:08]} 46. c4 {[%emt 0:07:08]} dxc4
{[%emt 0:09:54]} 47. dxc4 {[%emt 0:00:17]} Rb4 {[%emt 0:00:33]} 48. a3 {
[%emt 0:01:03]} Rb8 {[%emt 0:00:57]} 49. c5 {[%emt 0:00:12]} Bf8 {[%emt 0:01:
17]} 50. Rc1 {[%emt 0:01:06]} Qd7 {[%emt 0:01:41]} 51. Qc4 {[%emt 0:01:45]} Bf3
{[%emt 0:00:41]} 52. Kf2 {[%emt 0:00:35]} Bd5 {[%emt 0:01:42]} 53. Qf1 {
[%emt 0:01:19]} Bc6 {[%emt 0:02:00]} 54. Be3 {[%emt 0:00:51]} Qd5 {[%emt 0:00:
22]} 55. Ke1 {[%emt 0:00:27]} Bb5 {[%emt 0:03:07]} 56. Qf2 {[%emt 0:00:19]} Re8
{[%emt 0:00:23]} 57. Nc2 {[%emt 0:00:44]} Bxc5 {[%emt 0:00:31]} 58. Rd1 {
[%emt 0:00:10]} Qb3 {[%emt 0:01:12]} 59. Kd2 {[%emt 0:00:34]} Rd8+ {[%emt 0:01:
09]} 60. Ke1 {[%emt 0:00:36]} Qc3+ {[%emt 0:00:16]} 61. Rd2 {[%emt 0:15:06]}
Re8 {[%emt 0:15:36]} 62. Kd1 {[%emt 0:01:03]} Bxe3 {[%emt 0:00:21]} 63. Nxe3 {
[%emt 0:00:21]} Qa1+ {[%emt 0:00:33]} 64. Kc2 {[%emt 0:00:05]} Rc8+ {[%emt 0:
00:03]} 0-1